fUSD/lending_fUSD_20240712
["ID","MTS","AMOUNT","RATE_DAILY","PERIOD"]
[331791134,1720765849938,-500.0,0.00013698,2]
[331791135,1720765849948,-500.0,0.00013698,2]
[331791136,1720765849958,-151.0,0.00013698,2]
[331791137,1720765849968,-500.0,0.00013698,2]
[331791138,1720765849978,-806.67,0.00013698,2]
[331791139,1720765849989,-500.0,0.00013698,2]
[331791140,1720765849999,-1115.55,0.00013698,2]
[331791141,1720765850010,-500.0,0.00013698,2]
[331791142,1720765850021,-500.0,0.00013698,2]
[331791143,1720765850031,-500.0,0.00013698,2]
[331791144,1720765850041,-266.998399,0.00013698,2]
[331791145,1720765850051,-500.0,0.00013698,2]
[331791146,1720765850061,-500.0,0.00013698,2]
[331791147,1720765850072,-500.0,0.00013698,2]
[331791148,1720765850082,-391.67446121,0.00013698,2]
[331791149,1720765850092,-500.0,0.00013698,2]
[331791150,1720765850103,-506.39620448,0.00013698,2]
[331791151,1720765850113,-500.0,0.00013698,2]
[331791152,1720765850124,-1152.37,0.00013698,2]
[331791153,1720765850134,-154.948501,0.00013698,2]
[331791154,1720765850145,-500.0,0.00013698,2]
[331791155,1720765850156,-500.0,0.00013698,2]
[331791156,1720765850166,-500.0,0.00013698,2]
[331791157,1720765850176,-500.0,0.00013698,2]
[331791158,1720765850186,-500.0,0.00013698,2]
[331791159,1720765850196,-500.0,0.00013698,2]
[331791160,1720765850206,-1099.21,0.00013698,2]
[331791161,1720765850217,-500.0,0.00013698,2]
[331791162,1720765850227,-500.0,0.00013698,2]
[331791163,1720765850237,-500.0,0.00013698,2]
[331791164,1720765850246,-500.0,0.00013698,2]
[331791165,1720765850256,-500.0,0.00013698,2]
[331791166,1720765850267,-500.0,0.00013698,2]
[331791167,1720765850276,-151.0,0.00013698,2]
[331791168,1720765850287,-500.0,0.00013698,2]
[331791169,1720765850297,-500.0,0.00013698,2]
[331791170,1720765850307,-500.0,0.00013698,2]
[331791171,1720765850317,-500.0,0.00013698,2]
[331791172,1720765850328,-500.0,0.00013698,2]
[331791173,1720765850338,-500.0,0.00013698,2]
[331791174,1720765850348,-500.0,0.00013698,2]
[331791175,1720765850359,-958.58,0.00013698,2]
[331791176,1720765850369,-500.0,0.00013698,2]
[331791177,1720765850379,-500.0,0.00013698,2]
[331791178,1720765850389,-500.0,0.00013698,2]
[331791179,1720765850399,-500.0,0.00013698,2]
[331791180,1720765850409,-500.0,0.00013698,2]
[331791181,1720765850420,-500.0,0.00013698,2]
[331791182,1720765850431,-500.0,0.00013698,2]
[331791183,1720765850441,-500.0,0.00013698,2]
[331791184,1720765850451,-151.0,0.00013698,2]
[331791185,1720765850461,-500.0,0.00013698,2]
[331791186,1720765850471,-1435.54,0.00013698,2]
[331791187,1720765850480,-500.0,0.00013698,2]
[331791188,1720765850495,-500.0,0.00013698,2]
[331791189,1720765850505,-500.0,0.00013698,2]
[331791190,1720765850515,-500.0,0.00013698,2]
[331791191,1720765850526,-500.0,0.00013698,2]
[331791192,1720765850536,-933.39,0.00013698,2]
[331791193,1720765850546,-500.0,0.00013698,2]
[331791194,1720765850556,-500.0,0.00013698,2]
[331791195,1720765850572,-885.22,0.00013698,2]
[331791196,1720765850582,-500.0,0.00013698,2]
[331791197,1720765850593,-500.0,0.00013698,2]
[331791198,1720765850603,-525.55,0.00013698,2]
[331791199,1720765850613,-500.0,0.00013698,2]
[331791200,1720765850624,-500.0,0.00013698,2]
[331791201,1720765850634,-500.0,0.00013698,2]
[331791202,1720765850644,-500.0,0.00013698,2]
[331791203,1720765850655,-151.0,0.00013698,2]
[331791204,1720765850665,-151.0,0.00013698,2]
[331791205,1720765850676,-578.47,0.00013698,2]
[331791206,1720765850686,-500.0,0.00013698,2]
[331791207,1720765850696,-500.0,0.00013698,2]
[331791208,1720765850705,-500.0,0.00013698,2]
[331791209,1720765850715,-500.0,0.00013698,2]
[331791210,1720765850726,-151.0,0.00013698,2]
[331791211,1720765850736,-500.0,0.00013698,2]
[331791212,1720765850745,-250.580249,0.00013698,2]
[331791213,1720765850755,-585.1,0.00013698,2]
[331791214,1720765850764,-500.0,0.00013698,2]
[331791215,1720765850774,-768.43,0.00013698,2]
[331791216,1720765850783,-500.0,0.00013698,2]
[331791217,1720765850792,-1131.03,0.00013698,2]
[331791218,1720765850802,-500.66,0.00013698,2]
[331791219,1720765850812,-500.0,0.00013698,2]
[331791220,1720765850822,-151.0,0.00013698,2]
[331791221,1720765850832,-500.0,0.00013698,2]
[331791222,1720765850842,-1387.16,0.00013698,2]
[331791223,1720765850851,-500.0,0.00013698,2]
[331791224,1720765850861,-500.0,0.00013698,2]
[331791225,1720765850871,-500.0,0.00013698,2]
[331791226,1720765850881,-151.0,0.00013698,2]
[331791227,1720765850890,-500.0,0.00013698,2]
[331791228,1720765850901,-151.0,0.00013698,2]
[331791229,1720765850911,-500.0,0.00013698,2]
[331791230,1720765850920,-769.71,0.00013698,2]
[331791231,1720765850930,-151.0,0.00013698,2]
[331791232,1720765850939,-929.61,0.00013698,2]
[331791233,1720765850949,-500.0,0.00013698,2]
[331791234,1720765850958,-500.0,0.00013698,2]
[331791235,1720765850968,-500.0,0.00013698,2]
[331791236,1720765850979,-592.67,0.00013698,2]
[331791237,1720765850988,-500.0,0.00013698,2]
[331791238,1720765850998,-500.0,0.00013698,2]
[331791239,1720765851007,-372.988082,0.00013698,2]
[331791240,1720765851016,-500.0,0.00013698,2]
[331791241,1720765851026,-1164.92,0.00013698,2]
[331791242,1720765851035,-1195.55,0.00013698,2]
[331791243,1720765851045,-152.089888,0.00013698,2]
[331791244,1720765851055,-500.0,0.00013698,2]
[331791245,1720765851065,-500.0,0.00013698,2]
[331791246,1720765851076,-372.988082,0.00013698,2]
[331791247,1720765851086,-500.0,0.00013698,2]
[331791248,1720765851095,-500.0,0.00013698,2]
[331791249,1720765851106,-500.0,0.00013698,2]
[331791250,1720765851115,-151.0,0.00013698,2]
[331791251,1720765851125,-500.0,0.00013698,2]
[331791252,1720765851135,-500.0,0.00013698,2]
[331791253,1720765851144,-832.05,0.00013698,2]
[331791254,1720765851154,-500.0,0.00013698,2]
[331791255,1720765851164,-1157.39,0.00013698,2]
[331791256,1720765851175,-965.25,0.00013698,2]
[331791257,1720765851184,-1057.96,0.00013698,2]
[331791258,1720765851194,-500.0,0.00013698,2]
[331791259,1720765851203,-500.0,0.00013698,2]
[331791260,1720765851212,-500.0,0.00013698,2]
[331791261,1720765851222,-500.0,0.00013698,2]
[331791262,1720765851231,-500.0,0.00013698,2]
[331791263,1720765851241,-500.0,0.00013698,2]
[331791264,1720765851252,-500.0,0.00013698,2]
[331791265,1720765851262,-151.0,0.00013698,2]
[331791266,1720765851274,-500.0,0.00013698,2]
[331791267,1720765851285,-211.47869244,0.00013698,2]
[331791268,1720765851297,-500.0,0.00013698,2]
[331791269,1720765851307,-500.0,0.00013698,2]
[331791270,1720765851317,-663.73,0.00013698,2]
[331791271,1720765851328,-500.0,0.00013698,2]
[331791272,1720765851339,-500.0,0.00013698,2]
[331791273,1720765851349,-500.0,0.00013698,2]
[331791274,1720765851359,-151.0,0.00013698,2]
[331791275,1720765851372,-500.0,0.00013698,2]
[331791276,1720765851384,-996.83,0.00013698,2]
[331791277,1720765851395,-151.0,0.00013698,2]
[331791278,1720765851406,-778.42,0.00013698,2]
[331791279,1720765851417,-500.0,0.00013698,2]
[331791280,1720765851428,-500.94,0.00013698,2]
[331791281,1720765851437,-500.0,0.00013698,2]
[331791282,1720765851449,-500.0,0.00013698,2]
[331791283,1720765851459,-500.0,0.00013698,2]
[331791284,1720765851469,-1011.24,0.00013698,2]
[331791285,1720765851478,-500.0,0.00013698,2]
[331791286,1720765851493,-500.0,0.00013698,2]
[331791287,1720765851503,-500.0,0.00013698,2]
[331791288,1720765851512,-500.0,0.00013698,2]
[331791289,1720765851522,-724.27,0.00013698,2]
[331791290,1720765851532,-500.0,0.00013698,2]
[331791291,1720765851543,-500.0,0.00013698,2]
[331791292,1720765851552,-500.0,0.00013698,2]
[331791293,1720765851563,-948.7,0.00013698,2]
[331791294,1720765851574,-500.0,0.00013698,2]
[331791295,1720765851583,-500.0,0.00013698,2]
[331791296,1720765851593,-500.0,0.00013698,2]
[331791297,1720765851603,-221.8220292,0.00013698,2]
[331791298,1720765851614,-500.0,0.00013698,2]
[331791299,1720765851624,-500.0,0.00013698,2]
[331791300,1720765851634,-1338.17,0.00013698,2]
[331791301,1720765851645,-500.0,0.00013698,2]
[331791302,1720765851659,-500.0,0.00013698,2]
[331791303,1720765851668,-500.0,0.00013698,2]
[331791304,1720765851678,-894.67,0.00013698,2]
[331791305,1720765851688,-500.0,0.00013698,2]
[331791306,1720765851697,-500.0,0.00013698,2]
[331791307,1720765851707,-500.0,0.00013698,2]
[331791308,1720765851716,-691.16,0.00013698,2]
[331791309,1720765851725,-500.0,0.00013698,2]
[331791310,1720765851734,-500.0,0.00013698,2]
[331791311,1720765851744,-706.91,0.00013698,2]
[331791312,1720765851753,-500.0,0.00013698,2]
[331791313,1720765851764,-500.0,0.00013698,2]
[331791314,1720765851774,-210.966587,0.00013698,2]
[331791315,1720765851790,-1648.59,0.00013698,2]
[331791316,1720765851802,-579.34,0.00013698,2]
[331791317,1720765851812,-500.0,0.00013698,2]
[331791318,1720765851822,-500.0,0.00013698,2]
[331791319,1720765851833,-500.0,0.00013698,2]
[331791320,1720765851844,-151.0,0.00013698,2]
[331791321,1720765851854,-210.966587,0.00013698,2]
[331791322,1720765851864,-151.0,0.00013698,2]
[331791323,1720765851873,-500.0,0.00013698,2]
[331791324,1720765851884,-534.75,0.00013698,2]
[331791325,1720765851894,-500.0,0.00013698,2]
[331791326,1720765851908,-500.0,0.00013698,2]
[331791327,1720765851917,-6673.84,0.00013698,2]
[331791328,1720765851927,-500.0,0.00013698,2]
[331791329,1720765851937,-500.0,0.00013698,2]
[331791330,1720765851948,-500.0,0.00013698,2]
[331791331,1720765851957,-500.0,0.00013698,2]
[331791332,1720765851967,-151.0,0.00013698,2]
[331791333,1720765851978,-791.66,0.00013698,2]
[331791334,1720765851987,-500.0,0.00013698,2]
[331791335,1720765851997,-151.0,0.00013698,2]
[331791336,1720765852006,-500.0,0.00013698,2]
[331791337,1720765852016,-500.0,0.00013698,2]
[331791338,1720765852026,-868.6,0.00013698,2]
[331791339,1720765852036,-500.0,0.00013698,2]
[331791340,1720765852046,-500.0,0.00013698,2]
[331791341,1720765852056,-151.0,0.00013698,2]
[331791342,1720765852066,-503.87,0.00013698,2]
[331791343,1720765852075,-500.0,0.00013698,2]
[331791344,1720765852085,-500.0,0.00013698,2]
[331791345,1720765852094,-500.0,0.00013698,2]
[331791346,1720765852104,-500.0,0.00013698,2]
[331791347,1720765852113,-500.0,0.00013698,2]
[331791348,1720765852123,-500.0,0.00013698,2]
[331791349,1720765852133,-408.96282283,0.00013698,2]
[331791350,1720765852142,-1463.05,0.00013698,2]
[331791351,1720765852154,-500.0,0.00013698,2]
[331791352,1720765852163,-500.0,0.00013698,2]
[331791353,1720765852173,-1711.11,0.00013698,2]
[331791354,1720765852183,-500.0,0.00013698,2]
[331791355,1720765852192,-500.0,0.00013698,2]
[331791356,1720765852201,-500.0,0.00013698,2]
[331791357,1720765852211,-776.49,0.00013698,2]
[331791358,1720765852221,-500.0,0.00013698,2]
[331791359,1720765852229,-500.0,0.00013698,2]
[331791360,1720765852239,-940.12,0.00013698,2]
[331791361,1720765852248,-500.0,0.00013698,2]
[331791362,1720765852257,-500.0,0.00013698,2]
[331791363,1720765852266,-500.0,0.00013698,2]
[331791364,1720765852275,-500.0,0.00013698,2]
[331791365,1720765852284,-500.0,0.00013698,2]
[331791366,1720765852294,-1103.87,0.00013698,2]
[331791367,1720765852303,-500.0,0.00013698,2]
[331791368,1720765852312,-838.82,0.00013698,2]
[331791369,1720765852322,-500.0,0.00013698,2]
[331791370,1720765852331,-906.68,0.00013698,2]
[331791371,1720765852341,-500.0,0.00013698,2]
[331791372,1720765852350,-500.0,0.00013698,2]
[331791373,1720765852360,-500.0,0.00013698,2]
[331791374,1720765852369,-500.0,0.00013698,2]
[331791375,1720765852379,-774.99,0.00013698,2]
[331791376,1720765852388,-500.0,0.00013698,2]
[331791377,1720765852400,-500.0,0.00013698,2]
[331791378,1720765852412,-1574.49,0.00013698,2]
[331791379,1720765852422,-500.0,0.00013698,2]
[331791380,1720765852431,-1003.46,0.00013698,2]
[331791381,1720765852441,-715.19,0.00013698,2]
[331791382,1720765852450,-500.0,0.00013698,2]
[331791383,1720765852460,-500.0,0.00013698,2]
[331791384,1720765852470,-500.0,0.00013698,2]
[331791385,1720765852479,-500.0,0.00013698,2]
[331791386,1720765852492,-500.0,0.00013698,2]
[331791387,1720765852502,-500.0,0.00013698,2]
[331791388,1720765852513,-500.0,0.00013698,2]
[331791389,1720765852523,-151.0,0.00013698,2]
[331791390,1720765852534,-2671.99,0.00013698,2]
[331791391,1720765852543,-151.0,0.00013698,2]
[331791392,1720765852554,-500.0,0.00013698,2]
[331791393,1720765852566,-811.17,0.00013698,2]
[331791394,1720765852577,-500.0,0.00013698,2]
[331791395,1720765852587,-500.0,0.00013698,2]
[331791396,1720765852597,-1276.87010162,0.00013698,2]
[331791397,1720765852607,-500.0,0.00013698,2]
[331791398,1720765852618,-1169.16,0.00013698,2]
[331791399,1720765852629,-500.0,0.00013698,2]
[331791400,1720765852640,-500.0,0.00013698,2]
[331791401,1720765852650,-804.64,0.00013698,2]
[331791402,1720765852659,-500.0,0.00013698,2]
[331791403,1720765852669,-516.06,0.00013698,2]
[331791404,1720765852678,-500.0,0.00013698,2]
[331791405,1720765852688,-500.0,0.00013698,2]
[331791406,1720765852697,-500.0,0.00013698,2]
[331791407,1720765852708,-500.0,0.00013698,2]
[331791408,1720765852719,-500.0,0.00013698,2]
[331791409,1720765852728,-500.0,0.00013698,2]
[331791410,1720765852737,-500.0,0.00013698,2]
[331791411,1720765852747,-913.43,0.00013698,2]
[331791412,1720765852757,-151.0,0.00013698,2]
[331791413,1720765852767,-500.0,0.00013698,2]
[331791414,1720765852777,-500.0,0.00013698,2]
[331791415,1720765852788,-1567.42,0.00013698,2]
[331791416,1720765852798,-235.85465544,0.00013698,2]
[331791417,1720765852808,-1159.17,0.00013698,2]
[331791418,1720765852818,-1123.97,0.00013698,2]
[331791419,1720765852828,-7796.51,0.00013698,2]
[331791420,1720765852838,-682.47,0.00013698,2]
[331791421,1720765852848,-500.0,0.00013698,2]
[331791422,1720765852858,-500.0,0.00013698,2]
[331791423,1720765852868,-500.0,0.00013698,2]
[331791424,1720765852878,-3427.86,0.00013698,2]
[331791425,1720765852887,-151.727477,0.00013698,2]
[331791426,1720765852897,-884.1,0.00013698,2]
[331791427,1720765852907,-500.0,0.00013698,2]
[331791428,1720765852917,-500.0,0.00013698,2]
[331791429,1720765852927,-761.42,0.00013698,2]
[331791430,1720765852938,-151.0,0.00013698,2]
[331791431,1720765852948,-500.0,0.00013698,2]
[331791432,1720765852958,-500.0,0.00013698,2]
[331791433,1720765852968,-500.0,0.00013698,2]
[331791434,1720765852978,-500.0,0.00013698,2]
[331791435,1720765852988,-500.0,0.00013698,2]
[331791436,1720765852997,-500.0,0.00013698,2]
[331791437,1720765853007,-500.0,0.00013698,2]
[331791438,1720765853017,-195.082751,0.00013698,2]
[331791439,1720765853290,-500.0,0.00013698,2]
[331791440,1720765853300,-400.20086639,0.00013698,2]
[331791441,1720765853310,-500.0,0.00013698,2]
[331791442,1720765853319,-151.0,0.00013698,2]
[331791443,1720765853330,-500.0,0.00013698,2]
[331791444,1720765853340,-500.0,0.00013698,2]
[331791445,1720765853350,-500.0,0.00013698,2]
[331791446,1720765853360,-2349.61,0.00013698,2]
[331791447,1720765853371,-500.0,0.00013698,2]
[331791448,1720765853382,-2824.19,0.00013698,2]
[331791449,1720765853392,-544.06,0.00013698,2]
[331791450,1720765853404,-500.0,0.00013698,2]
[331791451,1720765853413,-1413.14,0.00013698,2]
[331791452,1720765853422,-500.0,0.00013698,2]
[331791453,1720765853431,-500.0,0.00013698,2]
[331791454,1720765853442,-158.655912,0.00013698,2]
[331791455,1720765853451,-151.0,0.00013698,2]
[331791456,1720765853463,-151.0,0.00013698,2]
[331791457,1720765853473,-500.0,0.00013698,2]
[331791458,1720765853485,-500.0,0.00013698,2]
[331791459,1720765853497,-500.0,0.00013698,2]
[331791460,1720765853508,-500.0,0.00013698,2]
[331791461,1720765853518,-500.0,0.00013698,2]
[331791462,1720765853528,-500.0,0.00013698,2]
[331791463,1720765853537,-500.0,0.00013698,2]
[331791464,1720765853546,-500.0,0.00013698,2]
[331791465,1720765853556,-151.0,0.00013698,2]
[331791466,1720765853566,-151.0,0.00013698,2]
[331791467,1720765853576,-746.16,0.00013698,2]
[331791468,1720765853585,-500.0,0.00013698,2]
[331791469,1720765853593,-500.0,0.00013698,2]
[331791470,1720765853603,-1040.64,0.00013698,2]
[331791471,1720765853612,-3411.217035,0.00013698,2]
[331791472,1720765853623,-568.05,0.00013698,2]
[331791473,1720765853632,-151.0,0.00013698,2]
[331791474,1720765853641,-3411.217035,0.00013698,2]
[331791475,1720765853654,-1225.06,0.00013698,2]
[331791476,1720765853674,-153.32465,0.00013698,2]
[331791477,1720765853685,-500.0,0.00013698,2]
[331791478,1720765853696,-500.0,0.00013698,2]
[331791479,1720765853707,-945.48,0.00013698,2]
[331791480,1720765853717,-502.01,0.00013698,2]
[331791481,1720765853727,-500.0,0.00013698,2]
[331791482,1720765853737,-1864.03,0.00013698,2]
[331791483,1720765853747,-500.0,0.00013698,2]
[331791484,1720765853757,-3411.217035,0.00013698,2]
[331791485,1720765853768,-500.0,0.00013698,2]
[331791486,1720765853778,-3411.217035,0.00013698,2]
[331791487,1720765853789,-782.62,0.00013698,2]
[331791488,1720765853799,-3139.48,0.00013698,2]
[331791489,1720765853809,-151.0,0.00013698,2]
[331791490,1720765853819,-151.0,0.00013698,2]
[331791491,1720765853830,-500.0,0.00013698,2]
[331791492,1720765853840,-500.0,0.00013698,2]
[331791493,1720765853850,-151.0,0.00013698,2]
[331791494,1720765853860,-967.92,0.00013698,2]
[331791495,1720765853870,-760.77,0.00013698,2]
[331791496,1720765853880,-151.0,0.00013698,2]
[331791497,1720765853890,-500.0,0.00013698,2]
[331791498,1720765853901,-500.0,0.00013698,2]
[331791499,1720765853912,-500.0,0.00013698,2]
[331791500,1720765853922,-817.59,0.00013698,2]
[331791501,1720765853932,-1000.0,0.00013698,2]
[331791502,1720765853942,-500.0,0.00013698,2]
[331791503,1720765853952,-672.02,0.00013698,2]
[331791504,1720765853963,-500.0,0.00013698,2]
[331791505,1720765853974,-500.0,0.00013698,2]
[331791506,1720765853983,-503.52,0.00013698,2]
[331791507,1720765853994,-500.0,0.00013698,2]
[331791508,1720765854004,-500.0,0.00013698,2]
[331791509,1720765854014,-500.0,0.00013698,2]
[331791510,1720765854024,-500.0,0.00013698,2]
[331791511,1720765854033,-500.0,0.00013698,2]
[331791512,1720765854043,-927.94,0.00013698,2]
[331791513,1720765854053,-500.0,0.00013698,2]
[331791514,1720765854064,-1369.87,0.00013698,2]
[331791515,1720765854074,-500.0,0.00013698,2]
[331791516,1720765854084,-500.0,0.00013698,2]
[331791517,1720765854094,-500.0,0.00013698,2]
[331791518,1720765854104,-500.0,0.00013698,2]
[331791519,1720765854114,-500.0,0.00013698,2]
[331791520,1720765854124,-510.11,0.00013698,2]
[331791521,1720765854134,-500.0,0.00013698,2]
[331791522,1720765854144,-883.29,0.00013698,2]
[331791523,1720765854155,-500.0,0.00013698,2]
[331791524,1720765854165,-703.12,0.00013698,2]
[331791525,1720765854175,-500.0,0.00013698,2]
[331791526,1720765854185,-500.0,0.00013698,2]
[331791527,1720765854195,-170.57089487,0.00013698,2]
[331791528,1720765854204,-1249.82,0.00013698,2]
[331791529,1720765854214,-500.0,0.00013698,2]
[331791530,1720765854224,-500.0,0.00013698,2]
[331791531,1720765854234,-151.0,0.00013698,2]
[331791532,1720765854244,-151.0,0.00013698,2]
[331791533,1720765854254,-698.85,0.00013698,2]
[331791534,1720765854263,-620.06130304,0.00013698,2]
[331791535,1720765854273,-500.0,0.00013698,2]
[331791536,1720765854283,-513.61,0.00013698,2]
[331791537,1720765854292,-500.0,0.00013698,2]
[331791538,1720765854302,-500.0,0.00013698,2]
[331791539,1720765854311,-500.0,0.00013698,2]
[331791540,1720765854321,-641.99,0.00013698,2]
[331791541,1720765854331,-500.0,0.00013698,2]
[331791542,1720765854340,-214.158926,0.00013698,2]
[331791543,1720765854350,-3390.01,0.00013698,2]
[331791544,1720765854361,-602.05593029,0.00013698,2]
[331791545,1720765854370,-500.0,0.00013698,2]
[331791546,1720765854380,-500.0,0.00013698,2]
[331791547,1720765854390,-522.91,0.00013698,2]
[331791548,1720765854401,-977.7,0.00013698,2]
[331791549,1720765854411,-500.0,0.00013698,2]
[331791550,1720765854420,-1182.584579,0.00013698,2]
[331791551,1720765854430,-214.158926,0.00013698,2]
[331791552,1720765854440,-1182.584579,0.00013698,2]
[331791553,1720765854449,-500.0,0.00013698,2]
[331791554,1720765854459,-500.0,0.00013698,2]
[331791555,1720765854469,-500.0,0.00013698,2]
[331791556,1720765854479,-500.0,0.00013698,2]
[331791557,1720765854492,-500.0,0.00013698,2]
[331791558,1720765854503,-853.13,0.00013698,2]
[331791559,1720765854514,-500.0,0.00013698,2]
[331791560,1720765854525,-500.0,0.00013698,2]
[331791561,1720765854538,-1182.584579,0.00013698,2]
[331791562,1720765854549,-760.44,0.00013698,2]
[331791563,1720765854564,-1182.584579,0.00013698,2]
[331791564,1720765854574,-534.54,0.00013698,2]
[331791565,1720765854584,-500.0,0.00013698,2]
[331791566,1720765854594,-500.0,0.00013698,2]
[331791567,1720765854603,-500.0,0.00013698,2]
[331791568,1720765854614,-500.0,0.00013698,2]
[331791569,1720765854623,-500.0,0.00013698,2]
[331791570,1720765854634,-789.27,0.00013698,2]
[331791571,1720765854644,-1308.59,0.00013698,2]
[331791572,1720765854656,-500.0,0.00013698,2]
[331791573,1720765854667,-500.0,0.00013698,2]
[331791574,1720765854676,-500.0,0.00013698,2]
[331791575,1720765854687,-1140.86,0.00013699,5]
[331791576,1720765854697,-151.0,0.00013699,2]
[331791577,1720765854707,-1769.23,0.00013699,2]
[331791578,1720765854718,-424.85,0.00013699,2]
[331791579,1720765854728,-150.0,0.00013699,2]
[331791580,1720765854738,-165.05,0.00013699,2]
[331791581,1720765854748,-424.85,0.00013699,2]
[331791582,1720765854758,-165.05,0.00013699,2]
[331791583,1720765854768,-150.0,0.00013699,2]
[331791584,1720765854779,-424.85,0.00013699,2]
[331791585,1720765854788,-165.05,0.00013699,2]
[331791586,1720765854798,-529.07,0.00013699,2]
[331791587,1720765854808,-529.07,0.00013699,2]
[331791588,1720765854818,-529.07,0.00013699,2]
[331791589,1720765854828,-529.07,0.00013699,2]
[331791590,1720765854838,-167.05516025,0.00013708,2]
[331791591,1720765854849,-150.0,0.00013708,2]
[331791592,1720765854859,-150.0,0.00013712,2]
[331791593,1720765854869,-150.0,0.00013714,2]
[331791594,1720765854879,-5000.0,0.00013719,2]
[331791595,1720765854889,-367.216527,0.00013721,2]
[331791596,1720765854901,-457.782995,0.00013721,2]
[331791597,1720765854911,-1366.434122,0.00013721,2]
[331791598,1720765854922,-367.216526,0.00013721,2]
[331791599,1720765854932,-457.782994,0.00013721,2]
[331791600,1720765854942,-151.0,0.00013721,2]
[331791601,1720765854953,-151.0,0.00013721,2]
[331791602,1720765854963,-151.0,0.00013721,2]
[331791603,1720765854973,-151.0,0.00013721,2]
[331791604,1720765854983,-151.0,0.00013721,2]
[331791605,1720765854993,-323.86948513,0.00013732,2]
[331791606,1720765855004,-564.90431941,0.00013743,2]
[331791607,1720765855014,-500.0,0.00013751,2]
[331791608,1720765855024,-500.0,0.00013752,2]
[331791609,1720765855034,-500.0,0.00013752,2]
[331791610,1720765855044,-528.22972461,0.00013752,2]
[331791611,1720765855053,-500.0,0.00013752,2]
[331791612,1720765855063,-500.0,0.00013752,2]
[331791613,1720765855072,-167.38719063,0.00013752,2]
[331791614,1720765855082,-500.0,0.00013753,2]
[331791615,1720765855092,-163.69633873,0.00013753,2]
[331791616,1720765855102,-500.0,0.00013753,2]
[331791617,1720765855111,-375.28119881,0.00013753,2]
[331791618,1720765855121,-500.0,0.00013753,2]
[331791619,1720765855131,-500.0,0.00013753,2]
[331791620,1720765855141,-500.0,0.00013753,2]
[331791621,1720765855152,-454.72829178,0.00013753,2]
[331791622,1720765855161,-200.0,0.00013753,2]
[331791623,1720765855172,-500.0,0.00013753,2]
[331791624,1720765855182,-500.0,0.00013753,2]
[331791625,1720765855192,-500.0,0.00013753,2]
[331791626,1720765855202,-500.0,0.00013753,2]
[331791627,1720765855211,-500.0,0.00013753,2]
[331791628,1720765855221,-500.0,0.00013753,2]
[331791629,1720765855231,-500.0,0.00013753,2]
[331791630,1720765855241,-500.0,0.00013753,2]
[331791631,1720765855251,-500.0,0.00013753,2]
[331791632,1720765855261,-500.0,0.00013753,2]
[331791633,1720765855271,-500.0,0.00013753,2]